fUSD/lending_fUSD_20260602
["ID","MTS","AMOUNT","RATE_DAILY","PERIOD"]
[423743239,1780363847000,-822.9,0.00014999,2]
[423743244,1780363847000,-993.08,0.00014999,2]
[423743250,1780363847000,-444147.69587244,0.00015,2]
[423743247,1780363847000,-993.08,0.00014999,2]
[423743249,1780363847000,-993.1991528,0.00014999,2]
[423743248,1780363847000,-993.08,0.00014999,2]
[423743254,1780363847000,-585.9697515,0.00013463,2]
[423743253,1780363847000,-284.88914436,0.00013463,2]
[423743252,1780363847000,-206.58678777,0.00012715,2]
[423743251,1780363847000,-64272.55293447,0.00015,2]
[423743235,1780363847000,-822.85,0.00014999,2]
[423743246,1780363847000,-993.08,0.00014999,2]
[423743234,1780363847000,-822.85,0.00014999,2]
[423743236,1780363847000,-822.85,0.00014999,2]
[423743214,1780363847000,-1789.41,0.00014999,2]
[423743220,1780363847000,-1789.41,0.00014999,2]
[423743225,1780363847000,-822.85,0.00014999,2]
[423743230,1780363847000,-822.85,0.00014999,2]
[423743221,1780363847000,-822.85,0.00014999,2]
[423743219,1780363847000,-822.85,0.00014999,2]
[423743223,1780363847000,-822.85,0.00014999,2]
[423743217,1780363847000,-822.85,0.00014999,2]
[423743222,1780363847000,-1789.4629496,0.00014999,2]
[423743226,1780363847000,-822.85,0.00014999,2]
[423743227,1780363847000,-822.85,0.00014999,2]
[423743228,1780363847000,-822.85,0.00014999,2]
[423743229,1780363847000,-822.85,0.00014999,2]
[423743224,1780363847000,-822.85,0.00014999,2]
[423743231,1780363847000,-822.85,0.00014999,2]
[423743232,1780363847000,-822.85,0.00014999,2]
[423743233,1780363847000,-822.85,0.00014999,2]
[423743255,1780363848000,-58.14110414,0.00013463,2]
[423743257,1780363848000,-2455.42631835,0.00015,2]
[423743256,1780363848000,-317.13589582,0.00015,2]
[423743258,1780363854000,222.584327,0.00030137,120]
[423743259,1780363864000,699.33460138,0.0003013,120]
[423743260,1780363892000,161.19156945,0.00030137,120]
[423743262,1780363960000,2470.3958778,0.00030136,120]
[423743268,1780364045000,-227.55474399,0.00010592,2]
[423743270,1780364061000,-163.64093689,0.00010709,2]
[423743269,1780364061000,1780.0,0.0003013,120]
[423743272,1780364061000,1113.10139201,0.0003013,120]
[423743273,1780364061000,15552.0,0.0003013,120]
[423743271,1780364061000,-52.00921346,0.00010728,2]
[423743275,1780364062000,15528.0,0.0003013,120]
[423743274,1780364062000,15228.0,0.0003013,120]
[423743276,1780364099000,-215.65015035,0.00010728,2]
[423743279,1780364114000,-672.90783491,0.00010754,2]
[423743280,1780364154000,-209.21103511,0.00010786,2]
[423743284,1780364168000,-160.0,0.00010786,2]
[423743285,1780364168000,-36.56176919,0.00010809,7]
[423743289,1780364206000,-250.0,0.00010798,2]
[423743290,1780364221000,-160.0,0.0001076,2]
[423743291,1780364260000,-3.64093689,0.0001076,2]
[423743292,1780364274000,-160.0,0.00010809,7]
[423743293,1780364285000,320.0,0.00030136,120]
[423743294,1780364313000,-2000.0,0.00010735,2]
[423743296,1780364366000,-160.0,0.00010735,2]
[423743298,1780364412000,187.78,0.00010205,2]
[423743297,1780364412000,-171.22,0.00010737,2]
[423743299,1780364457000,-1257.47,0.00010563,2]
[423743300,1780364502000,-1230.09181537,0.00010563,2]
[423743301,1780364502000,3000.0,0.000301,120]
[423743302,1780364519000,539.8308,0.00030137,120]
[423743306,1780364647000,1950.99,0.00010398,2]
[423743307,1780364727000,-702.21,0.00010613,2]
[423743308,1780364742000,544.58,0.00010357,2]
[423743309,1780364743000,-250.0,0.00010671,2]
[423743310,1780364764000,4705.042,0.00030136,120]
[423743311,1780364781000,-593.57,0.00010673,2]
[423743312,1780364796000,-150.0,0.00010725,2]
[423743314,1780364834000,-500.5236456,0.00010931,2]
[423743315,1780364848000,-160.0,0.00010946,2]
[423743316,1780364887000,-671.23,0.00010682,2]
[423743317,1780364905000,-3.64093689,0.00010946,2]
[423743320,1780364941000,-209.84,0.00010721,2]
[423743323,1780364957000,-3409.546208,0.00010891,2]
[423743322,1780364957000,-1550.64,0.00010702,2]
[423743321,1780364957000,2000.0,0.00030136,120]
[423743325,1780364995000,-241.97,0.00010582,2]
[423743389,1780365047000,-250.0,0.00010796,2]
[423743431,1780365048000,-165.90178857,0.00011539,2]
[423743414,1780365048000,-114.83342293,0.00011436,2]
[423743418,1780365048000,-500.0,0.00011436,2]
[423743417,1780365048000,-400.71487648,0.00011436,2]
[423743416,1780365048000,-99.28512352,0.00011436,2]
[423743413,1780365048000,-500.0,0.00011436,2]
[423743415,1780365048000,-385.16657707,0.00011436,2]
[423743422,1780365048000,-500.0,0.00011436,2]
[423743408,1780365048000,-500.2875386,0.00011436,2]
[423743419,1780365048000,-259.22869423,0.00011436,2]
[423743424,1780365048000,-38.84412648,0.00011436,2]
[423743420,1780365048000,-240.77130577,0.00011436,2]
[423743423,1780365048000,-500.0,0.00011436,2]
[423743426,1780365048000,-500.0,0.00011436,2]
[423743430,1780365048000,-1579.83780288,0.00011493,2]
[423743427,1780365048000,-500.0,0.00011436,2]
[423743436,1780365048000,-2738.79182097,0.0001154,2]
[423743425,1780365048000,-461.15587352,0.00011436,2]
[423743428,1780365048000,-206.04707733,0.00011436,2]
[423743404,1780365048000,-500.0,0.00011436,2]
[423743401,1780365048000,-1200.0,0.00011436,2]
[423743405,1780365048000,-500.97460831,0.00011436,2]
[423743429,1780365048000,-500.0,0.00011436,2]
[423743390,1780365048000,-1550.64,0.00010891,2]
[423743391,1780365048000,-897.44,0.00010923,2]
[423743398,1780365048000,-215.65015035,0.00011221,2]
[423743395,1780365048000,-1000.0,0.00011095,2]
[423743394,1780365048000,-152.0,0.00011093,7]
[423743393,1780365048000,-152.0,0.00011081,7]
[423743392,1780365048000,-160.0,0.00011043,2]
[423743397,1780365048000,-209.21103511,0.00011193,2]
[423743399,1780365048000,-251.46551812,0.00011234,7]
[423743396,1780365048000,-163.58,0.00011156,2]
[423743409,1780365048000,-500.0,0.00011436,2]
[423743410,1780365048000,-154.43900368,0.00011436,2]
[423743403,1780365048000,-500.15030206,0.00011436,2]
[423743400,1780365048000,-187.78,0.0001128,2]
[423743412,1780365048000,-500.0,0.00011436,2]
[423743411,1780365048000,-500.0,0.00011436,2]
[423743402,1780365048000,-300.0,0.00011436,2]
[423743407,1780365048000,-500.0,0.00011436,2]
[423743406,1780365048000,-501.57779898,0.00011436,2]
[423743432,1780365048000,-176.86018882,0.00011539,2]
[423743421,1780365048000,-500.0,0.00011436,2]
[423743433,1780365048000,-6739.22644217,0.0001154,2]
[423743453,1780365048000,-544.58,0.00011651,2]
[423743459,1780365048000,-502.04144236,0.00011772,2]
[423743461,1780365048000,-5000.0,0.00011876,2]
[423743463,1780365048000,-1579.83780284,0.0001198,2]
[423743462,1780365048000,-16663.22159299,0.00011913,2]
[423743470,1780365048000,-1680.0,0.0001258,2]
[423743471,1780365048000,-16663.22159299,0.0001266,2]
[423743460,1780365048000,-250.0,0.00011772,2]
[423743465,1780365048000,-16663.22159299,0.00012287,2]
[423743464,1780365048000,-2000.0,0.00012077,2]
[423743466,1780365048000,-156.78,0.00012329,2]
[423743469,1780365048000,-1500.0,0.00012562,2]
[423743467,1780365048000,-159.9529103,0.00012329,2]
[423743472,1780365048000,-388.10868402,0.00012713,2]
[423743473,1780365048000,-500.0,0.00012808,2]
[423743475,1780365048000,-342.72406063,0.00012808,2]
[423743476,1780365048000,-500.0,0.00012808,2]
[423743474,1780365048000,-500.0,0.00012808,2]
[423743434,1780365048000,-44718.66441499,0.0001154,2]
[423743456,1780365048000,-5086.90624348,0.0001175,2]
[423743455,1780365048000,-193.26637723,0.0001174,2]
[423743468,1780365048000,-1579.83780284,0.00012466,2]
[423743451,1780365048000,-16663.22159306,0.0001154,2]
[423743435,1780365048000,-1299.22892134,0.0001154,2]
[423743454,1780365048000,-388.10868404,0.00011724,2]
[423743437,1780365048000,-371.345,0.0001154,2]
[423743446,1780365048000,-857.21047002,0.0001154,2]
[423743438,1780365048000,-300.0,0.0001154,2]
[423743442,1780365048000,-3153.50367141,0.0001154,2]
[423743445,1780365048000,-1318.04895992,0.0001154,2]
[423743439,1780365048000,-1781.2704048,0.0001154,2]
[423743443,1780365048000,-1765.2141387,0.0001154,2]
[423743447,1780365048000,-3782.48852576,0.0001154,2]
[423743441,1780365048000,-862.67535811,0.0001154,2]
[423743444,1780365048000,-2503.54768477,0.0001154,2]
[423743477,1780365048000,-500.0,0.00012808,2]
[423743449,1780365048000,-300.0,0.0001154,2]
[423743448,1780365048000,-383.38243217,0.0001154,2]
[423743458,1780365048000,-193.0,0.00011772,2]
[423743457,1780365048000,-500.0,0.0001175,2]
[423743440,1780365048000,-3091.33817095,0.0001154,2]
[423743450,1780365048000,-598278.03358392,0.0001154,2]
[423743452,1780365048000,-33243.3462,0.0001164,2]
[423743504,1780365049000,-500.0,0.00012808,2]
[423743517,1780365049000,-16663.22159299,0.00013033,2]
[423743515,1780365049000,-500.0,0.00012917,2]
[423743523,1780365049000,-16663.22159299,0.00013407,2]
[423743514,1780365049000,-159.9529103,0.00012858,2]
[423743505,1780365049000,-500.0,0.00012808,2]
[423743512,1780365049000,-260.50307483,0.00012808,2]
[423743507,1780365049000,-500.0,0.00012808,2]
[423743502,1780365049000,-500.0,0.00012808,2]
[423743516,1780365049000,-1579.83780284,0.00012953,2]
[423743513,1780365049000,-200.17265647,0.00012808,2]
[423743522,1780365049000,-159.9529103,0.00013386,2]
[423743535,1780365049000,-150.0,0.00013488,2]
[423743519,1780365049000,-599.0,0.00013268,2]
[423743518,1780365049000,-167.13,0.00013127,2]
[423743520,1780365049000,-500.0,0.00013356,2]
[423743533,1780365049000,-150.04099743,0.00013488,2]
[423743536,1780365049000,-10000.0,0.0001353,2]
[423743524,1780365049000,-2000.0,0.00013419,2]
[423743537,1780365049000,-150.0,0.00013543,2]
[423743525,1780365049000,-1579.83780284,0.0001344,2]
[423743526,1780365049000,-150.0,0.00013488,2]
[423743528,1780365049000,-150.0,0.00013488,2]
[423743503,1780365049000,-500.0,0.00012808,2]
[423743521,1780365049000,-600.0,0.00013356,2]
[423743506,1780365049000,-500.0,0.00012808,2]
[423743480,1780365049000,-500.0,0.00012808,2]
[423743501,1780365049000,-500.0,0.00012808,2]
[423743481,1780365049000,-500.0,0.00012808,2]
[423743483,1780365049000,-639.74075382,0.00012808,2]
[423743482,1780365049000,-500.0,0.00012808,2]
[423743484,1780365049000,-289.81767642,0.00012808,2]
[423743479,1780365049000,-500.0,0.00012808,2]
[423743478,1780365049000,-500.0,0.00012808,2]
[423743527,1780365049000,-223.75024082,0.00013488,2]
[423743486,1780365049000,-500.0,0.00012808,2]
[423743487,1780365049000,-500.0,0.00012808,2]
[423743498,1780365049000,-500.0,0.00012808,2]
[423743489,1780365049000,-500.0,0.00012808,2]
[423743494,1780365049000,-500.0,0.00012808,2]
[423743499,1780365049000,-210.12141826,0.00012808,2]
[423743485,1780365049000,-500.0,0.00012808,2]
[423743490,1780365049000,-500.0,0.00012808,2]
[423743495,1780365049000,-500.0,0.00012808,2]
[423743488,1780365049000,-150.0,0.00012808,2]
[423743497,1780365049000,-500.0,0.00012808,2]
[423743491,1780365049000,-500.0,0.00012808,2]
[423743492,1780365049000,-306.6186348,0.00012808,2]
[423743493,1780365049000,-500.0,0.00012808,2]
[423743509,1780365049000,-500.0,0.00012808,2]
[423743508,1780365049000,-500.0,0.00012808,2]
[423743511,1780365049000,-500.0,0.00012808,2]
[423743510,1780365049000,-500.0,0.00012808,2]
[423743500,1780365049000,-500.0,0.00012808,2]
[423743496,1780365049000,-500.0,0.00012808,2]
[423743529,1780365049000,-255.40957955,0.00013488,2]
[423743534,1780365049000,-150.0,0.00013488,2]
[423743531,1780365049000,-150.0,0.00013488,2]
[423743567,1780365049000,-500.0,0.00013698,2]
[423743568,1780365049000,-500.0,0.00013698,2]
[423743570,1780365049000,-500.0,0.00013698,2]
[423743571,1780365049000,-299.9493767,0.00013698,2]
[423743569,1780365049000,-505.063733,0.00013698,2]
[423743572,1780365049000,-500.0,0.00013698,2]
[423743573,1780365049000,-500.0,0.00013698,2]
[423743575,1780365049000,-500.0,0.00013698,2]
[423743576,1780365049000,-500.0,0.00013698,2]
[423743585,1780365049000,-500.0,0.00013698,2]
[423743578,1780365049000,-500.0,0.00013698,2]
[423743586,1780365049000,-500.0,0.00013698,2]
[423743566,1780365049000,-501.83190583,0.00013698,2]
[423743587,1780365049000,-457.07149929,0.00013698,2]
[423743574,1780365049000,-500.0,0.00013698,2]
[423743580,1780365049000,-268.63965714,0.00013698,2]
[423743583,1780365049000,-510.29608046,0.00013698,2]
[423743581,1780365049000,-500.0,0.00013698,2]
[423743582,1780365049000,-500.0,0.00013698,2]
[423743579,1780365049000,-444.24929666,0.00013698,2]
[423743589,1780365049000,-500.0,0.00013698,2]
[423743588,1780365049000,-500.0,0.00013698,2]
[423743590,1780365049000,-517.56704979,0.00013698,2]
[423743591,1780365049000,-504.04395398,0.00013698,2]
[423743592,1780365049000,-500.0,0.00013698,2]
[423743530,1780365049000,-150.0,0.00013488,2]
[423743577,1780365049000,-500.0,0.00013698,2]
[423743565,1780365049000,-500.0,0.00013698,2]
[423743584,1780365049000,-500.0,0.00013698,2]
[423743563,1780365049000,-500.0,0.00013698,2]
[423743532,1780365049000,-150.0,0.00013488,2]
[423743564,1780365049000,-500.0,0.00013698,2]
[423743538,1780365049000,-150.0,0.00013599,2]
[423743540,1780365049000,-150.0,0.00013654,2]
[423743541,1780365049000,-500.0,0.00013698,2]
[423743542,1780365049000,-500.0,0.00013698,2]
[423743544,1780365049000,-500.0,0.00013698,2]
[423743543,1780365049000,-500.0,0.00013698,2]
[423743548,1780365049000,-464.53084129,0.00013698,2]
[423743547,1780365049000,-500.0,0.00013698,2]
[423743545,1780365049000,-500.0,0.00013698,2]
[423743546,1780365049000,-500.0,0.00013698,2]
[423743550,1780365049000,-500.0,0.00013698,2]
[423743539,1780365049000,-150.0,0.00013638,2]
[423743560,1780365049000,-500.0,0.00013698,2]
[423743558,1780365049000,-502.22681897,0.00013698,2]
[423743549,1780365049000,-500.0,0.00013698,2]
[423743555,1780365049000,-500.0,0.00013698,2]
[423743554,1780365049000,-500.0,0.00013698,2]
[423743557,1780365049000,-500.0,0.00013698,2]
[423743552,1780365049000,-500.0,0.00013698,2]
[423743559,1780365049000,-500.0,0.00013698,2]
[423743556,1780365049000,-502.38580616,0.00013698,2]
[423743561,1780365049000,-512.85319587,0.00013698,2]
[423743562,1780365049000,-500.0,0.00013698,2]
[423743551,1780365049000,-500.0,0.00013698,2]
[423743553,1780365049000,-502.22164104,0.00013698,2]
[423743635,1780365050000,-1295.19261641,0.00013699,2]
[423743639,1780365050000,-1295.19261641,0.00013699,2]
[423743631,1780365050000,-2500.0,0.00013699,2]
[423743630,1780365050000,-500.0,0.00013698,2]
[423743628,1780365050000,-500.0,0.00013698,2]
[423743640,1780365050000,-1295.19261641,0.00013699,2]
[423743623,1780365050000,-500.0,0.00013698,2]
[423743629,1780365050000,-500.0,0.00013698,2]
[423743637,1780365050000,-1295.19261641,0.00013699,2]
[423743625,1780365050000,-500.0,0.00013698,2]
[423743624,1780365050000,-500.0,0.00013698,2]
[423743632,1780365050000,-166.66,0.00013699,2]
[423743638,1780365050000,-1295.19261641,0.00013699,2]
[423743634,1780365050000,-1295.19261641,0.00013699,2]
[423743651,1780365050000,-1295.19261641,0.00013699,2]
[423743636,1780365050000,-1295.19261641,0.00013699,2]
[423743641,1780365050000,-1295.19261641,0.00013699,2]
[423743643,1780365050000,-1295.19261641,0.00013699,2]
[423743644,1780365050000,-1295.19261641,0.00013699,2]
[423743648,1780365050000,-1295.19261641,0.00013699,2]
[423743649,1780365050000,-1295.19261641,0.00013699,2]
[423743647,1780365050000,-1295.19261641,0.00013699,2]
[423743645,1780365050000,-1295.19261641,0.00013699,2]
[423743650,1780365050000,-1295.19261641,0.00013699,2]
[423743642,1780365050000,-1295.19261641,0.00013699,2]
[423743653,1780365050000,-1295.19261641,0.00013699,2]
[423743652,1780365050000,-1295.19261641,0.00013699,2]
[423743622,1780365050000,-500.0,0.00013698,2]
[423743633,1780365050000,-200.0,0.00013699,2]
[423743619,1780365050000,-500.0,0.00013698,2]
[423743601,1780365050000,-500.0,0.00013698,2]
[423743620,1780365050000,-500.0,0.00013698,2]
[423743655,1780365050000,-1295.19261641,0.00013699,2]
[423743593,1780365050000,-500.0,0.00013698,2]
[423743596,1780365050000,-500.0,0.00013698,2]
[423743594,1780365050000,-500.0,0.00013698,2]
[423743599,1780365050000,-500.0,0.00013698,2]
[423743600,1780365050000,-500.0,0.00013698,2]
[423743595,1780365050000,-196.00094657,0.00013698,2]
[423743598,1780365050000,-500.0,0.00013698,2]
[423743597,1780365050000,-237.11336892,0.00013698,2]
[423743611,1780365050000,-620.29,0.00013698,2]
[423743613,1780365050000,-620.29,0.00013698,2]
[423743612,1780365050000,-620.29,0.00013698,2]
[423743614,1780365050000,-620.29,0.00013698,2]
[423743621,1780365050000,-509.62854778,0.00013698,2]
[423743603,1780365050000,-620.29,0.00013698,2]
[423743604,1780365050000,-620.29,0.00013698,2]
[423743606,1780365050000,-620.29,0.00013698,2]
[423743605,1780365050000,-620.29,0.00013698,2]
[423743607,1780365050000,-620.29,0.00013698,2]
[423743609,1780365050000,-620.29,0.00013698,2]
[423743610,1780365050000,-620.29,0.00013698,2]
[423743608,1780365050000,-620.29,0.00013698,2]
[423743615,1780365050000,-620.29,0.00013698,2]
[423743618,1780365050000,-511.15953142,0.00013698,2]
[423743617,1780365050000,-500.0,0.00013698,2]
[423743616,1780365050000,-500.0,0.00013698,2]
[423743627,1780365050000,-500.0,0.00013698,2]
[423743626,1780365050000,-500.0,0.00013698,2]
[423743602,1780365050000,-486.4698592,0.00013698,2]
[423743654,1780365050000,-1295.19261641,0.00013699,2]
[423743646,1780365050000,-1295.19261641,0.00013699,2]
[423743657,1780365050000,-1295.19261641,0.00013699,2]
[423743684,1780365050000,-1295.19261641,0.00013699,2]
[423743688,1780365050000,-1295.19261641,0.00013699,2]
[423743692,1780365050000,-1295.19261641,0.00013699,2]
[423743693,1780365050000,-1295.19261641,0.00013699,2]
[423743703,1780365050000,-150.0,0.00013765,2]
[423743699,1780365050000,-388.10868402,0.00013701,2]
[423743701,1780365050000,-150.0,0.00013702,2]
[423743694,1780365050000,-1295.19261641,0.00013699,2]
[423743704,1780365050000,-150.0,0.00013787,2]
[423743697,1780365050000,-1295.19261641,0.00013699,2]
[423743698,1780365050000,-189.46097518,0.00013701,2]
[423743702,1780365050000,-150.0,0.0001371,2]
[423743696,1780365050000,-1295.19261641,0.00013699,2]
[423743683,1780365050000,-1295.19261641,0.00013699,2]
[423743695,1780365050000,-1295.19261641,0.00013699,2]
[423743714,1780365050000,-500.0,0.00013801,2]
[423743716,1780365050000,-253.55554005,0.00013801,2]
[423743715,1780365050000,-500.0,0.00013801,2]
[423743707,1780365050000,-151.0,0.00013801,2]
[423743710,1780365050000,-500.0,0.00013801,2]
[423743706,1780365050000,-151.0,0.00013798,2]
[423743713,1780365050000,-500.0,0.00013801,2]
[423743712,1780365050000,-500.0,0.00013801,2]
[423743708,1780365050000,-151.0,0.00013801,2]
[423743709,1780365050000,-500.0,0.00013801,2]
[423743711,1780365050000,-500.0,0.00013801,2]
[423743717,1780365050000,-500.0,0.00013801,2]
[423743718,1780365050000,-500.0,0.00013801,2]
[423743700,1780365050000,-150.0,0.00013702,2]
[423743685,1780365050000,-1295.19261641,0.00013699,2]
[423743705,1780365050000,-241.56935853,0.00013791,2]
[423743686,1780365050000,-1295.19261641,0.00013699,2]
[423743687,1780365050000,-1295.19261641,0.00013699,2]
[423743656,1780365050000,-1295.19261641,0.00013699,2]
[423743659,1780365050000,-1295.19261641,0.00013699,2]
[423743660,1780365050000,-1295.19261641,0.00013699,2]
[423743658,1780365050000,-1295.19261641,0.00013699,2]
[423743661,1780365050000,-1295.19261641,0.00013699,2]
[423743662,1780365050000,-1295.19261641,0.00013699,2]
[423743664,1780365050000,-1295.19261641,0.00013699,2]
[423743719,1780365050000,-500.0,0.00013801,2]
[423743663,1780365050000,-1295.19261641,0.00013699,2]
[423743666,1780365050000,-1295.19261641,0.00013699,2]
[423743668,1780365050000,-1295.19261641,0.00013699,2]
[423743667,1780365050000,-1295.19261641,0.00013699,2]
[423743673,1780365050000,-1295.19261641,0.00013699,2]
[423743671,1780365050000,-1295.19261641,0.00013699,2]
[423743665,1780365050000,-1295.19261641,0.00013699,2]
[423743675,1780365050000,-1295.19261641,0.00013699,2]
[423743679,1780365050000,-1295.19261641,0.00013699,2]
[423743690,1780365050000,-1295.19261641,0.00013699,2]
[423743681,1780365050000,-1295.19261641,0.00013699,2]
[423743682,1780365050000,-1295.19261641,0.00013699,2]
[423743691,1780365050000,-1295.19261641,0.00013699,2]
[423743680,1780365050000,-1295.19261641,0.00013699,2]
[423743689,1780365050000,-1295.19261641,0.00013699,2]
[423743672,1780365050000,-1295.19261641,0.00013699,2]
[423743674,1780365050000,-1295.19261641,0.00013699,2]
[423743677,1780365050000,-1295.19261641,0.00013699,2]
[423743669,1780365050000,-1295.19261641,0.00013699,2]
[423743676,1780365050000,-1295.19261641,0.00013699,2]
[423743670,1780365050000,-1295.19261641,0.00013699,2]
[423743678,1780365050000,-1295.19261641,0.00013699,2]
[423743720,1780365051000,-500.0,0.00013801,2]
[423743723,1780365051000,-500.0,0.00013801,2]
[423743721,1780365051000,-500.0,0.00013801,2]
[423743722,1780365051000,-500.0,0.00013801,2]
[423743724,1780365051000,-1382666.37371104,0.00013801,2]
[423743725,1780365051000,-746.2211022,0.00013801,2]
[423743729,1780365051000,-405.04776308,0.00013801,2]
[423743726,1780365051000,-369.60926882,0.00013801,2]
[423743727,1780365051000,-311.55492724,0.00013801,2]
[423743731,1780365051000,-340.0,0.0001378,2]
[423743730,1780365051000,-160.0,0.0001107,2]
[423743732,1780365051000,-8447.82656984,0.0001378,2]
[423743733,1780365051000,-431.56928052,0.0001378,2]
[423743728,1780365051000,-150.0,0.00010959,2]
[423743734,1780365101000,-500.5236456,0.00011081,2]
[423743735,1780365155000,-196.56176919,0.00010825,7]
[423743736,1780365208000,-227.55474399,0.00012068,2]
[423743737,1780365438000,300.57,0.00030137,120]
[423743738,1780365507000,-202.98840213,0.00010825,7]
[423743739,1780365522000,-250.0,0.00011535,2]
[423743740,1780365560000,-672.90783491,0.00011908,2]
[423743741,1780365575000,-250.0,0.00011908,2]
[423743742,1780365614000,-757.25,0.00012207,2]
[423743743,1780365630000,-150.0,0.00012224,2]
[423743744,1780365666000,-3409.546208,0.00012102,2]
[423743745,1780365682000,-200.0,0.00012244,2]
[423743747,1780365720000,-159.95291031,0.00012329,2]
[423743748,1780365774000,-215.65015035,0.00012415,2]
[423743749,1780365826000,-241.97,0.00012304,2]
[423743750,1780365881000,-448.72,0.00012317,2]
[423743751,1780365934000,-1000.0,0.00012281,2]
[423743752,1780365967000,2161.569,0.00030137,120]
[423743753,1780365987000,-163.64093689,0.00012363,2]
[423743758,1780366052000,1000.0,0.00030136,120]
[423743757,1780366052000,1000.0,0.00030136,120]
[423743756,1780366052000,1000.0,0.00030136,120]
[423743755,1780366052000,1000.0,0.00030136,120]
[423743754,1780366052000,1000.0,0.00030136,120]
[423743760,1780366053000,747.18381442,0.00030136,120]
[423743759,1780366053000,1000.0,0.00030136,120]
[423743761,1780366067000,166.43,0.00030136,120]
[423743763,1780366141000,2000.0,0.00030136,120]
[423743764,1780366206000,-163.64093689,0.00012252,2]
[423743765,1780366221000,-702.21,0.00012267,2]
[423743810,1780366232000,-150.0,0.0001276,2]
[423743777,1780366232000,-150.0,0.00012271,2]
[423743779,1780366232000,-75.06625,0.00012329,2]
[423743778,1780366232000,-656.74,0.0001229,2]
[423743781,1780366232000,-159.95291031,0.00012329,2]
[423743785,1780366232000,-593.57,0.00012352,2]
[423743782,1780366232000,-150.0,0.00012345,2]
[423743783,1780366232000,-1081.0,0.00012345,2]
[423743784,1780366232000,-5353.85,0.00012347,2]
[423743786,1780366232000,-671.23,0.00012368,2]
[423743799,1780366232000,-1550.64,0.00012376,2]
[423743801,1780366232000,-6198.85,0.00012463,2]
[423743780,1780366232000,-81.71375,0.00012329,2]
[423743807,1780366232000,-160.0,0.0001259,2]
[423743802,1780366232000,-170.54,0.00012509,2]
[423743812,1780366232000,-1144.74,0.00012876,2]
[423743813,1780366232000,-150.0,0.00012882,2]
[423743808,1780366232000,-150.0,0.00012637,2]
[423743811,1780366232000,-2000.0,0.00012828,2]
[423743804,1780366232000,-215.67541492,0.0001256,2]
[423743806,1780366232000,-209.21103511,0.0001259,2]
[423743805,1780366232000,-1144.74,0.00012562,2]
[423743800,1780366232000,-150.0,0.00012392,2]
[423743803,1780366232000,-150.0,0.00012514,2]
[423743809,1780366232000,-332.93,0.00012667,2]
[423743828,1780366233000,-500.0,0.00013433,2]
[423743822,1780366233000,-151.0,0.00013159,2]
[423743825,1780366233000,-500.0,0.00013356,2]
[423743827,1780366233000,-255.0,0.00013431,2]
[423743826,1780366233000,-600.0,0.00013356,2]
[423743824,1780366233000,-1400.1,0.000133,2]
[423743823,1780366233000,-1144.74,0.0001319,2]
[423743815,1780366233000,-151.0,0.00013128,2]
[423743817,1780366233000,-151.0,0.0001315,2]
[423743818,1780366233000,-151.0,0.00013156,2]
[423743816,1780366233000,-151.0,0.0001315,2]
[423743819,1780366233000,-151.0,0.00013158,2]
[423743814,1780366233000,-150.0,0.00013005,2]
[423743829,1780366233000,-310.459,0.0001344,2]
[423743821,1780366233000,-151.0,0.00013159,2]
[423743830,1780366233000,-4296.401,0.0001344,2]
[423743820,1780366233000,-500.0,0.00013159,2]
[423743833,1780366233000,-150.0,0.00013488,2]
[423743831,1780366233000,-150.0,0.00013488,2]
[423743847,1780366233000,-1138.266141,0.00013601,2]